fUST/lending_fUST_20250228
["ID","MTS","AMOUNT","RATE_DAILY","PERIOD"]
[354782603,1740689458633,-4160.29623827,0.0005264,2]
[354782604,1740689458642,-154.76478031,0.0005264,2]
[354782605,1740689458651,-10193.55585108,0.0005264,2]
[354782606,1740689458660,-3008.22065832,0.0005264,2]
[354782607,1740689458669,-6225.96242815,0.0005264,2]
[354782608,1740689458679,-155.87256569,0.0005264,2]
[354782609,1740689458689,-520.82521742,0.0005264,2]
[354782610,1740689458698,-1696.18872249,0.0005264,2]
[354782611,1740689458707,-441.30739946,0.0005264,2]
[354782612,1740689458720,-1849.15662904,0.0005264,2]
[354782613,1740689458730,-13634.3078762,0.0005264,2]
[354782614,1740689458739,-502.25436543,0.0005264,2]
[354782615,1740689458748,-151.29462519,0.0005264,2]
[354782616,1740689458757,-300.22053529,0.0005264,2]
[354782617,1740689458766,-1383.12037724,0.0005264,2]
[354782618,1740689458775,-581.04829138,0.0005264,2]
[354782619,1740689458785,-5830.3823144,0.0005264,2]
[354782620,1740689458794,-15686.11239705,0.0005264,2]
[354782621,1740689458803,-9065.50145822,0.0005264,2]
[354782622,1740689458812,-502.31864146,0.0005264,2]
[354782623,1740689458821,-3918.59361606,0.0005264,2]
[354782624,1740689458830,-883.39446826,0.0005264,2]
[354782625,1740689458839,-1600.0,0.00052649,30]
[354782626,1740689458848,-2570.34159281,0.00052649,30]
[354782627,1740689459079,-249.799568,0.00041822,2]
[354782628,1740689459088,-401.2227502,0.00049315,120]
[354782629,1740689459097,-500.0,0.0005264,120]
[354782630,1740689459107,-12229.65840719,0.00052649,30]
[354782631,1740689459116,-377.1938527,0.00052656,120]
[354782632,1740689459125,-1741.63130757,0.00052656,120]
[354782633,1740689459135,-4850.0,0.00052658,120]
[354782634,1740689459143,-500.0,0.00052876,120]
[354782635,1740689459152,-500.0,0.00052876,120]
[354782636,1740689459161,-500.0,0.00052876,120]
[354782637,1740689459170,-500.0,0.00052876,120]
[354782638,1740689459179,-500.0,0.00052876,120]
[354782639,1740689459189,-933.25,0.00052876,120]
[354782640,1740689459198,-500.0,0.00052876,120]
[354782641,1740689459208,-619.65,0.00052876,120]
[354782642,1740689459219,-834.75,0.00052876,120]
[354782643,1740689459228,-542.15,0.00052876,120]
[354782644,1740689459238,-500.0,0.00052876,120]
[354782645,1740689459247,-699.84,0.00052876,120]
[354782646,1740689459256,-462.00033113,0.00052876,120]
[354782647,1740689459266,-500.0,0.00052876,120]
[354782648,1740689459275,-625.12,0.00052876,120]
[354782649,1740689459284,-500.0,0.00052876,120]
[354782650,1740689459294,-932.12,0.00052876,120]
[354782651,1740689459303,-500.0,0.00052876,120]
[354782652,1740689459312,-500.0,0.00052876,120]
[354782653,1740689459321,-624.47,0.00052876,120]
[354782654,1740689459331,-500.0,0.00052876,120]
[354782655,1740689459340,-500.0,0.00052876,120]
[354782656,1740689459349,-500.0,0.00052876,120]
[354782657,1740689459357,-500.0,0.00052876,120]
[354782658,1740689459366,-578.52,0.00052876,120]
[354782659,1740689459375,-500.0,0.00052876,120]
[354782660,1740689459384,-815.92,0.00052876,120]
[354782661,1740689459394,-2855.83,0.00052876,120]
[354782662,1740689459404,-42295.85,0.00052876,7]
[354782663,1740689459413,-5230.55,0.00052876,120]
[354782664,1740689459422,-500.0,0.00052876,120]
[354782665,1740689459432,-500.0,0.00052876,120]
[354782666,1740689459441,-919.37,0.00052876,120]
[354782667,1740689459450,-758.58,0.00052876,120]
[354782668,1740689459460,-510.14,0.00052876,120]
[354782669,1740689459474,-571.14,0.00052876,120]
[354782670,1740689459483,-500.0,0.00052876,120]
[354782671,1740689459492,-908.32,0.00052876,120]
[354782672,1740689459502,-9151.3,0.00052876,120]
[354782673,1740689459512,-500.0,0.00052876,120]
[354782674,1740689459522,-2139.34,0.00052876,120]
[354782675,1740689459531,-1235.23,0.00052876,120]
[354782676,1740689459542,-738.09,0.00052876,120]
[354782677,1740689459552,-2079.64,0.00052876,120]
[354782678,1740689459561,-798.98,0.00052876,120]
[354782679,1740689459571,-203.79,0.00052876,120]
[354782680,1740689459581,-7812.85,0.00052876,6]
[354782681,1740689459590,-2595.17,0.00052876,120]
[354782682,1740689459602,-500.0,0.00052876,120]
[354782683,1740689459611,-775.53,0.00052876,120]
[354782684,1740689459621,-986.37,0.00052876,120]
[354782685,1740689459631,-1569.86,0.00052876,120]
[354782686,1740689459641,-663.41,0.00052876,120]
[354782687,1740689459650,-524.08,0.00052876,120]
[354782688,1740689459660,-1227.83,0.00052876,120]
[354782689,1740689459670,-3214.67,0.00052876,120]
[354782690,1740689459679,-5359.62,0.00052876,120]
[354782691,1740689459689,-6020.34,0.00052876,120]
[354782692,1740689459699,-6334.59,0.00052876,120]
[354782693,1740689459709,-1409.35,0.00052876,120]
[354782694,1740689459720,-500.0,0.00052876,120]
[354782695,1740689459729,-507.54,0.00052876,120]
[354782696,1740689459738,-607.37,0.00052876,120]
[354782697,1740689459747,-500.0,0.00052876,120]
[354782698,1740689459757,-500.0,0.00052876,120]
[354782699,1740689459766,-616.07,0.00052876,120]
[354782700,1740689459776,-2006.15,0.00052876,120]
[354782701,1740689459785,-1602.62,0.00052876,120]
[354782702,1740689459794,-566.24,0.00052876,120]
[354782703,1740689459803,-788.17,0.00052876,120]
[354782704,1740689459813,-560.88,0.00052876,120]
[354782705,1740689459822,-522.53,0.00052876,120]
[354782706,1740689459831,-587.31,0.00052876,120]
[354782707,1740689459840,-67885.6,0.000529,30]
[354782708,1740689459850,-498.0,0.00053,120]
[354782709,1740689459859,-1000.0,0.00053,120]
[354782710,1740689459868,-700.00000032,0.00053,90]
[354782711,1740689459877,-4847.98,0.00053,30]
[354782712,1740689459886,-1383.76302147,0.0005305,28]
[354782713,1740689459895,-1539.89,0.000531,30]
[354782714,1740689459904,-500.0,0.0005315,120]
[354782715,1740689459913,-500.0,0.0005315,120]
[354782716,1740689459922,-500.0,0.0005315,120]
[354782717,1740689459932,-500.0,0.0005315,120]
[354782718,1740689459941,-237.53,0.0005315,120]
[354782719,1740689459950,-933.25,0.0005315,120]
[354782720,1740689459960,-500.0,0.0005315,120]
[354782721,1740689459970,-619.65,0.0005315,120]
[354782722,1740689459979,-542.15,0.0005315,120]
[354782723,1740689459989,-834.75,0.0005315,120]
[354782724,1740689459998,-500.0,0.0005315,120]
[354782725,1740689460007,-699.84,0.0005315,120]
[354782726,1740689460017,-500.0,0.0005315,120]
[354782727,1740689460026,-625.12,0.0005315,120]
[354782728,1740689460036,-224.6,0.0005315,120]
[354782729,1740689460046,-932.12,0.0005315,120]
[354782730,1740689460056,-500.0,0.0005315,120]
[354782731,1740689460072,-500.0,0.0005315,120]
[354782732,1740689460082,-624.47,0.0005315,120]
[354782733,1740689460091,-500.0,0.0005315,120]
[354782734,1740689460101,-500.0,0.0005315,120]
[354782735,1740689460110,-500.0,0.0005315,120]
[354782736,1740689460119,-500.0,0.0005315,120]
[354782737,1740689460128,-578.52,0.0005315,120]
[354782738,1740689460138,-500.0,0.0005315,120]
[354782739,1740689460147,-815.92,0.0005315,120]
[354782740,1740689460156,-2855.83,0.0005315,120]
[354782741,1740689460166,-42295.85,0.0005315,7]
[354782742,1740689460175,-5230.55,0.0005315,120]
[354782743,1740689460184,-500.0,0.0005315,120]
[354782744,1740689460194,-500.0,0.0005315,120]
[354782745,1740689460203,-919.37,0.0005315,120]
[354782746,1740689460214,-758.58,0.0005315,120]
[354782747,1740689460225,-510.14,0.0005315,120]
[354782748,1740689460234,-571.14,0.0005315,120]
[354782749,1740689460243,-500.0,0.0005315,120]
[354782750,1740689460253,-908.32,0.0005315,120]
[354782751,1740689460263,-9151.3,0.0005315,120]
[354782752,1740689460273,-500.0,0.0005315,120]
[354782753,1740689460283,-2139.34,0.0005315,120]
[354782754,1740689460292,-1235.23,0.0005315,120]
[354782755,1740689460302,-738.09,0.0005315,120]
[354782756,1740689460311,-798.98,0.0005315,120]
[354782757,1740689460320,-2079.64,0.0005315,120]
[354782758,1740689460329,-7812.85,0.0005315,6]
[354782759,1740689460339,-2595.17,0.0005315,120]
[354782760,1740689460348,-500.0,0.0005315,120]
[354782761,1740689460358,-775.53,0.0005315,120]
[354782762,1740689460366,-986.37,0.0005315,120]
[354782763,1740689460376,-1569.86,0.0005315,120]
[354782764,1740689460385,-663.41,0.0005315,120]
[354782765,1740689460394,-524.08,0.0005315,120]
[354782766,1740689460403,-1227.83,0.0005315,120]
[354782767,1740689460413,-3214.67,0.0005315,120]
[354782768,1740689460422,-5359.62,0.0005315,120]
[354782769,1740689460432,-6020.34,0.0005315,120]
[354782770,1740689460442,-6334.59,0.0005315,120]
[354782771,1740689460451,-1409.35,0.0005315,120]
[354782772,1740689460468,-500.0,0.0005315,120]
[354782773,1740689460478,-507.54,0.0005315,120]
[354782774,1740689460488,-239.73,0.0005315,120]
[354782775,1740689460499,-500.0,0.0005315,120]
[354782776,1740689460509,-2006.15,0.0005315,120]
[354782777,1740689460518,-1602.62,0.0005315,120]
[354782778,1740689460527,-566.24,0.0005315,120]
[354782779,1740689460537,-788.17,0.0005315,120]
[354782780,1740689460547,-522.53,0.0005315,120]
[354782781,1740689460557,-560.88,0.0005315,120]
[354782782,1740689460567,-587.31,0.0005315,120]
[354782783,1740689460576,-150.0,0.00053418,14]
[354782784,1740689460586,-150.0,0.00053418,14]
[354782785,1740689460595,-500.0,0.00053424,120]
[354782786,1740689460604,-500.0,0.00053424,120]
[354782787,1740689460614,-500.0,0.00053424,120]
[354782788,1740689460623,-500.0,0.00053424,120]
[354782789,1740689460632,-933.25,0.00053424,120]
[354782790,1740689460641,-500.0,0.00053424,120]
[354782791,1740689460651,-619.65,0.00053424,120]
[354782792,1740689460660,-542.15,0.00053424,120]
[354782793,1740689460669,-834.75,0.00053424,120]
[354782794,1740689460678,-500.0,0.00053424,120]
[354782795,1740689460687,-699.84,0.00053424,120]
[354782796,1740689460696,-500.0,0.00053424,120]
[354782797,1740689460705,-625.12,0.00053424,120]
[354782798,1740689460818,-932.12,0.00053424,120]
[354782799,1740689460827,-500.0,0.00053424,120]
[354782800,1740689460836,-307.52,0.00053424,120]
[354782801,1740689460845,-624.47,0.00053424,120]
[354782802,1740689460855,-500.0,0.00053424,120]
[354782803,1740689460864,-500.0,0.00053424,120]
[354782804,1740689460873,-175.9,0.00053424,120]
[354782805,1740689460882,-500.0,0.00053424,120]
[354782806,1740689460891,-578.52,0.00053424,120]
[354782807,1740689460900,-500.0,0.00053424,120]
[354782808,1740689460909,-815.92,0.00053424,120]
[354782809,1740689460918,-2855.83,0.00053424,120]
[354782810,1740689460928,-42295.85,0.00053424,7]
[354782811,1740689460938,-5230.55,0.00053424,120]
[354782812,1740689460947,-500.0,0.00053424,120]
[354782813,1740689460956,-500.0,0.00053424,120]
[354782814,1740689460967,-919.37,0.00053424,120]
[354782815,1740689460977,-758.58,0.00053424,120]
[354782816,1740689460986,-510.14,0.00053424,120]
[354782817,1740689460995,-571.14,0.00053424,120]
[354782818,1740689461004,-500.0,0.00053424,120]
[354782819,1740689461014,-908.32,0.00053424,120]
[354782820,1740689461024,-9151.3,0.00053424,120]
[354782821,1740689461034,-553.65661204,0.00053424,120]
[354782822,1740689461043,-2139.34,0.00053424,120]
[354782823,1740689461052,-1235.23,0.00053424,120]
[354782824,1740689461062,-738.09,0.00053424,120]
[354782825,1740689461071,-798.98,0.00053424,120]
[354782826,1740689461080,-2079.64,0.00053424,120]
[354782827,1740689461089,-7812.85,0.00053424,6]
[354782828,1740689461099,-2595.17,0.00053424,120]
[354782829,1740689461108,-500.0,0.00053424,120]
[354782830,1740689461117,-775.53,0.00053424,120]
[354782831,1740689461127,-986.37,0.00053424,120]
[354782832,1740689461137,-1569.86,0.00053424,120]
[354782833,1740689461147,-663.41,0.00053424,120]
[354782834,1740689461157,-524.08,0.00053424,120]
[354782835,1740689461166,-1227.83,0.00053424,120]
[354782836,1740689461176,-3214.67,0.00053424,120]
[354782837,1740689461186,-5359.62,0.00053424,120]
[354782838,1740689461195,-6020.34,0.00053424,120]
[354782839,1740689461205,-6334.59,0.00053424,120]
[354782840,1740689461217,-1409.35,0.00053424,120]
[354782841,1740689461226,-500.0,0.00053424,120]
[354782842,1740689461235,-507.54,0.00053424,120]
[354782843,1740689461244,-500.0,0.00053424,120]
[354782844,1740689461254,-2006.15,0.00053424,120]
[354782845,1740689461263,-1602.62,0.00053424,120]
[354782846,1740689461272,-566.24,0.00053424,120]
[354782847,1740689461281,-788.17,0.00053424,120]
[354782848,1740689461291,-522.53,0.00053424,120]
[354782849,1740689461300,-560.88,0.00053424,120]
[354782850,1740689461309,-587.31,0.00053424,120]
[354782851,1740689461318,-500.0,0.00053698,120]
[354782852,1740689461327,-500.0,0.00053698,120]
[354782853,1740689461337,-500.0,0.00053698,120]
[354782854,1740689461347,-463.68,0.00053698,120]
[354782855,1740689461356,-933.25,0.00053698,120]
[354782856,1740689461366,-500.0,0.00053698,120]
[354782857,1740689461375,-619.65,0.00053698,120]
[354782858,1740689461385,-542.15,0.00053698,120]
[354782859,1740689461394,-834.75,0.00053698,120]
[354782860,1740689461404,-500.0,0.00053698,120]
[354782861,1740689461413,-699.84,0.00053698,120]
[354782862,1740689461423,-348.78319828,0.00053698,120]
[354782863,1740689461432,-625.12,0.00053698,120]
[354782864,1740689461440,-932.12,0.00053698,120]
[354782865,1740689461449,-500.0,0.00053698,120]
[354782866,1740689461459,-624.47,0.00053698,120]
[354782867,1740689461471,-500.0,0.00053698,120]
[354782868,1740689461481,-500.0,0.00053698,120]
[354782869,1740689461490,-500.0,0.00053698,120]
[354782870,1740689461500,-578.52,0.00053698,120]
[354782871,1740689461509,-500.0,0.00053698,120]
[354782872,1740689461519,-815.92,0.00053698,120]
[354782873,1740689461529,-2855.83,0.00053698,120]
[354782874,1740689461537,-42295.85,0.00053698,7]
[354782875,1740689461547,-5230.55,0.00053698,120]
[354782876,1740689461557,-467.16,0.00053698,120]
[354782877,1740689461566,-500.0,0.00053698,120]
[354782878,1740689461575,-919.37,0.00053698,120]
[354782879,1740689461585,-758.58,0.00053698,120]
[354782880,1740689461595,-510.14,0.00053698,120]
[354782881,1740689461604,-571.14,0.00053698,120]
[354782882,1740689461614,-500.0,0.00053698,120]
[354782883,1740689461624,-908.32,0.00053698,120]
[354782884,1740689461633,-9151.3,0.00053698,120]
[354782885,1740689461643,-2139.34,0.00053698,120]
[354782886,1740689461653,-1235.23,0.00053698,120]
[354782887,1740689461663,-738.09,0.00053698,120]
[354782888,1740689461672,-798.98,0.00053698,120]
[354782889,1740689461681,-2079.64,0.00053698,120]
[354782890,1740689461691,-7812.85,0.00053698,6]
[354782891,1740689461700,-2595.17,0.00053698,120]
[354782892,1740689461709,-500.0,0.00053698,120]
[354782893,1740689461721,-775.53,0.00053698,120]
[354782894,1740689461730,-986.37,0.00053698,120]
[354782895,1740689461740,-1569.86,0.00053698,120]
[354782896,1740689461749,-663.41,0.00053698,120]
[354782897,1740689461758,-524.08,0.00053698,120]
[354782898,1740689461768,-1227.83,0.00053698,120]
[354782899,1740689461778,-3214.67,0.00053698,120]
[354782900,1740689461788,-5359.62,0.00053698,120]
[354782901,1740689461797,-6020.34,0.00053698,120]
[354782902,1740689461807,-6334.59,0.00053698,120]
[354782903,1740689461816,-1409.35,0.00053698,120]
[354782904,1740689461825,-500.0,0.00053698,120]
[354782905,1740689461834,-507.54,0.00053698,120]
[354782906,1740689461844,-500.0,0.00053698,120]
[354782907,1740689461853,-2006.15,0.00053698,120]
[354782908,1740689461862,-1602.62,0.00053698,120]
[354782909,1740689461871,-566.24,0.00053698,120]
[354782910,1740689461880,-788.17,0.00053698,120]
[354782911,1740689461890,-522.53,0.00053698,120]
[354782912,1740689461899,-560.88,0.00053698,120]
[354782913,1740689461908,-587.31,0.00053698,120]
[354782914,1740689461918,-152.65711493,0.0005391,120]
[354782915,1740689461927,-157.82952176,0.0005391,120]
[354782916,1740689461936,-87501.1962444,0.00053928,30]
[354782917,1740689461946,-500.0,0.00053972,120]
[354782918,1740689461955,-500.0,0.00053972,120]
[354782919,1740689461967,-500.0,0.00053972,120]
[354782920,1740689461976,-933.25,0.00053972,120]
[354782921,1740689461985,-500.0,0.00053972,120]
[354782922,1740689461995,-619.65,0.00053972,120]
[354782923,1740689462004,-542.15,0.00053972,120]
[354782924,1740689462014,-834.75,0.00053972,120]
[354782925,1740689462023,-500.0,0.00053972,120]
[354782926,1740689462032,-699.84,0.00053972,120]
[354782927,1740689462042,-625.12,0.00053972,120]
[354782928,1740689462051,-932.12,0.00053972,120]
[354782929,1740689462060,-500.0,0.00053972,120]
[354782930,1740689462069,-624.47,0.00053972,120]
[354782931,1740689462078,-500.0,0.00053972,120]
[354782932,1740689462087,-500.0,0.00053972,120]
[354782933,1740689462096,-191.29,0.00053972,120]
[354782934,1740689462106,-578.52,0.00053972,120]
[354782935,1740689462116,-473.29492372,0.00053972,120]
[354782936,1740689462125,-815.92,0.00053972,120]
[354782937,1740689462135,-2855.83,0.00053972,120]
[354782938,1740689462145,-42295.85,0.00053972,7]
[354782939,1740689462154,-5230.55,0.00053972,120]
[354782940,1740689462163,-919.37,0.00053972,120]
[354782941,1740689462172,-500.0,0.00053972,120]
[354782942,1740689462182,-758.58,0.00053972,120]
[354782943,1740689462192,-510.14,0.00053972,120]
[354782944,1740689462201,-571.14,0.00053972,120]
[354782945,1740689462211,-564.72,0.00053972,120]
[354782946,1740689462223,-908.32,0.00053972,120]
[354782947,1740689462232,-9151.3,0.00053972,120]
[354782948,1740689462242,-2139.34,0.00053972,120]
[354782949,1740689462252,-1235.23,0.00053972,120]
[354782950,1740689462262,-738.09,0.00053972,120]
[354782951,1740689462271,-798.98,0.00053972,120]
[354782952,1740689462281,-2079.64,0.00053972,120]
[354782953,1740689462290,-7812.85,0.00053972,6]
[354782954,1740689462300,-2595.17,0.00053972,120]
[354782955,1740689462310,-500.0,0.00053972,120]
[354782956,1740689462319,-775.53,0.00053972,120]
[354782957,1740689462328,-986.37,0.00053972,120]
[354782958,1740689462338,-1569.86,0.00053972,120]
[354782959,1740689462347,-663.41,0.00053972,120]
[354782960,1740689462357,-524.08,0.00053972,120]
[354782961,1740689462367,-1227.83,0.00053972,120]
[354782962,1740689462377,-3214.67,0.00053972,120]
[354782963,1740689462386,-5359.62,0.00053972,120]
[354782964,1740689462395,-6020.34,0.00053972,120]
[354782965,1740689462404,-6334.59,0.00053972,120]
[354782966,1740689462413,-1409.35,0.00053972,120]
[354782967,1740689462423,-500.0,0.00053972,120]
[354782968,1740689462433,-507.54,0.00053972,120]
[354782969,1740689462443,-405.55,0.00053972,120]
[354782970,1740689462453,-2006.15,0.00053972,120]
[354782971,1740689462466,-1602.62,0.00053972,120]
[354782972,1740689462478,-566.24,0.00053972,120]
[354782973,1740689462487,-788.17,0.00053972,120]
[354782974,1740689462496,-522.53,0.00053972,120]
[354782975,1740689462506,-560.88,0.00053972,120]
[354782976,1740689462516,-587.31,0.00053972,120]
[354782977,1740689462525,-1000.0,0.00054,120]
[354782978,1740689462535,-151.0,0.00054,120]
[354782979,1740689462546,-211.58917144,0.0005415,13]
[354782980,1740689462555,-500.0,0.00054246,120]
[354782981,1740689462565,-500.0,0.00054246,120]
[354782982,1740689462575,-590.0,0.00054246,120]
[354782983,1740689462584,-933.25,0.00054246,120]
[354782984,1740689462593,-500.0,0.00054246,120]
[354782985,1740689462603,-619.65,0.00054246,120]
[354782986,1740689462612,-542.15,0.00054246,120]
[354782987,1740689462622,-834.75,0.00054246,120]
[354782988,1740689462631,-500.0,0.00054246,120]
[354782989,1740689462640,-699.84,0.00054246,120]
[354782990,1740689462650,-625.12,0.00054246,120]
[354782991,1740689462659,-932.12,0.00054246,120]
[354782992,1740689462669,-500.0,0.00054246,120]
[354782993,1740689462678,-624.47,0.00054246,120]
[354782994,1740689462687,-500.0,0.00054246,120]
[354782995,1740689462696,-500.0,0.00054246,120]
[354782996,1740689462706,-578.52,0.00054246,120]
[354782997,1740689462717,-815.92,0.00054246,120]
[354782998,1740689462727,-2855.83,0.00054246,120]
[354782999,1740689462736,-42295.85,0.00054246,7]
[354783000,1740689462745,-5230.55,0.00054246,120]
[354783001,1740689462755,-919.37,0.00054246,120]
[354783002,1740689462765,-500.0,0.00054246,120]
[354783003,1740689462775,-758.58,0.00054246,120]
[354783004,1740689462784,-510.14,0.00054246,120]
[354783005,1740689462794,-571.14,0.00054246,120]
[354783006,1740689462804,-908.32,0.00054246,120]
[354783007,1740689462814,-9151.3,0.00054246,120]
[354783008,1740689462823,-2139.34,0.00054246,120]
[354783009,1740689462833,-1235.23,0.00054246,120]
[354783010,1740689462842,-738.09,0.00054246,120]
[354783011,1740689462852,-798.98,0.00054246,120]
[354783012,1740689462861,-2079.64,0.00054246,120]
[354783013,1740689462870,-7812.85,0.00054246,6]
[354783014,1740689462879,-2595.17,0.00054246,120]
[354783015,1740689462889,-500.0,0.00054246,120]
[354783016,1740689462898,-775.53,0.00054246,120]
[354783017,1740689462907,-986.37,0.00054246,120]
[354783018,1740689462916,-1569.86,0.00054246,120]
[354783019,1740689462925,-663.41,0.00054246,120]
[354783020,1740689462935,-524.08,0.00054246,120]
[354783021,1740689462944,-1227.83,0.00054246,120]
[354783022,1740689462953,-3214.67,0.00054246,120]
[354783023,1740689462963,-5359.62,0.00054246,120]
[354783024,1740689462974,-6020.34,0.00054246,120]
[354783025,1740689462984,-6334.59,0.00054246,120]
[354783026,1740689462993,-1409.35,0.00054246,120]
[354783027,1740689463003,-500.0,0.00054246,120]
[354783028,1740689463012,-507.54,0.00054246,120]
[354783029,1740689463022,-2006.15,0.00054246,120]
[354783030,1740689463032,-1602.62,0.00054246,120]
[354783031,1740689463042,-566.24,0.00054246,120]
[354783032,1740689463051,-788.17,0.00054246,120]
[354783033,1740689463061,-522.53,0.00054246,120]
[354783034,1740689463071,-560.88,0.00054246,120]
[354783035,1740689463081,-587.31,0.00054246,120]
[354783036,1740689463092,-500.0,0.0005452,120]
[354783037,1740689463101,-500.0,0.0005452,120]
[354783038,1740689463111,-933.25,0.0005452,120]
[354783039,1740689463224,-500.0,0.0005452,120]
[354783040,1740689463234,-619.65,0.0005452,120]
[354783041,1740689463244,-542.15,0.0005452,120]
[354783042,1740689463254,-834.75,0.0005452,120]
[354783043,1740689463263,-500.0,0.0005452,120]
[354783044,1740689463273,-699.84,0.0005452,120]
[354783045,1740689463283,-625.12,0.0005452,120]
[354783046,1740689463293,-932.12,0.0005452,120]
[354783047,1740689463302,-340.11,0.0005452,120]
[354783048,1740689463311,-624.47,0.0005452,120]
[354783049,1740689463321,-500.0,0.0005452,120]
[354783050,1740689463330,-500.0,0.0005452,120]
[354783051,1740689463340,-578.52,0.0005452,120]
[354783052,1740689463350,-815.92,0.0005452,120]
[354783053,1740689463359,-2855.83,0.0005452,120]
[354783054,1740689463369,-42295.85,0.0005452,7]
[354783055,1740689463379,-5230.55,0.0005452,120]
[354783056,1740689463388,-919.37,0.0005452,120]
[354783057,1740689463397,-500.0,0.0005452,120]
[354783058,1740689463407,-758.58,0.0005452,120]
[354783059,1740689463416,-510.14,0.0005452,120]
[354783060,1740689463426,-571.14,0.0005452,120]
[354783061,1740689463436,-908.32,0.0005452,120]
[354783062,1740689463445,-9151.3,0.0005452,120]
[354783063,1740689463455,-2139.34,0.0005452,120]
[354783064,1740689463469,-1235.23,0.0005452,120]
[354783065,1740689463479,-738.09,0.0005452,120]
[354783066,1740689463488,-798.98,0.0005452,120]
[354783067,1740689463497,-2079.64,0.0005452,120]
[354783068,1740689463508,-7812.85,0.0005452,6]
[354783069,1740689463518,-2595.17,0.0005452,120]
[354783070,1740689463528,-500.0,0.0005452,120]
[354783071,1740689463537,-775.53,0.0005452,120]
[354783072,1740689463548,-986.37,0.0005452,120]
[354783073,1740689463558,-1569.86,0.0005452,120]
[354783074,1740689463568,-663.41,0.0005452,120]
[354783075,1740689463578,-524.08,0.0005452,120]
[354783076,1740689463587,-1227.83,0.0005452,120]
[354783077,1740689463596,-3214.67,0.0005452,120]
[354783078,1740689463607,-6020.34,0.0005452,120]
[354783079,1740689463616,-5359.62,0.0005452,120]
[354783080,1740689463626,-6334.59,0.0005452,120]
[354783081,1740689463635,-1409.35,0.0005452,120]
[354783082,1740689463645,-500.0,0.0005452,120]
[354783083,1740689463655,-507.54,0.0005452,120]
[354783084,1740689463666,-2006.15,0.0005452,120]
[354783085,1740689463676,-1602.62,0.0005452,120]
[354783086,1740689463685,-566.24,0.0005452,120]
[354783087,1740689463694,-788.17,0.0005452,120]
[354783088,1740689463704,-522.53,0.0005452,120]
[354783089,1740689463713,-560.88,0.0005452,120]
[354783090,1740689463723,-587.31,0.0005452,120]
[354783091,1740689463733,-649.0,0.00054794,120]
[354783092,1740689463742,-1000.0,0.00054794,120]
[354783093,1740689463752,-150.0,0.00054794,120]
[354783094,1740689463761,-500.0,0.00054794,120]
[354783095,1740689463771,-500.0,0.00054794,120]
[354783096,1740689463779,-500.0,0.00054794,120]
[354783097,1740689463789,-293.80020065,0.00054794,120]
[354783098,1740689463798,-933.25,0.00054794,120]
[354783099,1740689463807,-636.73,0.00054794,120]
[354783100,1740689463816,-619.65,0.00054794,120]
[354783101,1740689463825,-542.15,0.00054794,120]
[354783102,1740689463834,-834.75,0.00054794,120]